Cogmind - Beta 15 @@@ ROGUE MODE // 2025.08.25 @ 11:54:17 Player: shapeshifter Result: Self-destructed Performance ------------- Evolutions (1) 500 Regions Visited (3) 600 Robots Destroyed (18) 90 Value Destroyed (373) 373 Prototype IDs (0) 0 Alien Tech Used (0) 0 Bonus (0) 0 TOTAL SCORE: 1563 Bonus ------- None Cogmind --------- Core Integrity 256/400 Matter 203/300 Energy 250/250 System Corruption 0% Temperature Hot (265) Movement Treading (240) Ox1 Location -9/Materials Parts ------- > --- POWER (1) -------- Ion Engine > --- PROPULSION (3) --- Light Treads Improved Treads > --- UTILITY (2) ------ High-capacity Storage Unit > --- WEAPON (3) ------- Particle Gun > --- INVENTORY (20) --- Light Ion Engine Compact Wheel Compact Wheel High-capacity Storage Unit ECM Suite Rocket Launcher Peak State ------------ > --- POWER ------------ Ion Engine > --- PROPULSION ------- Light Treads Improved Treads Improved Treads > --- UTILITY ---------- High-capacity Storage Unit > --- WEAPON ----------- Particle Gun Light Assault Rifle Heavy Assault Rifle > --- INVENTORY -------- Light Ion Engine Compact Wheel Compact Wheel High-capacity Storage Unit ECM Suite Rocket Launcher [Rating: 12] Favorites ----------- Power Ion Engine Engine Ion Engine Propulsion Light Treads Treads Light Treads Utility Small Storage Unit Device Seismic Detector Storage Small Storage Unit Weapon Light Assault Rifle Energy Gun Particle Gun Ballistic Gun Light Assault Rifle Build | -11 -10 -10 -9 ------- Run | Yrd Mat Min Mat Slots Evolved 2 | . . . 2 Power . | . . . . Propulsion 1 | . . . 1 Utility . | . . . . Weapon 1 | . . . 1 Parts Attached 12 | 7 . 1 4 Power 1 | 1 . . . Engine 1 | 1 . . . Core . | . . . . Reactor . | . . . . Propulsion 4 | 2 . . 2 Treads 4 | 2 . . 2 Leg . | . . . . Wheel . | . . . . Hover . | . . . . Flight . | . . . . Utility 3 | 2 . . 1 Device 1 | 1 . . . Storage 2 | 1 . . 1 Processor . | . . . . Hackware . | . . . . Protection . | . . . . Artifact . | . . . . Weapon 4 | 2 . 1 1 Energy Gun 2 | 1 . 1 . Energy Cannon . | . . . . Ballistic Gun 2 | 1 . . 1 Ballistic Cannon . | . . . . Launcher . | . . . . Special Weapon . | . . . . Impact Weapon . | . . . . Slashing Weapon . | . . . . Piercing Weapon . | . . . . Special Melee Weapon . | . . . . Unidentified Prototypes . | . . . . Parts Lost 5 | . . 2 3 Power . | . . . . Propulsion 1 | . . . 1 Utility 1 | . . 1 . Weapon 3 | . . 1 2 Highest Loss Streak 3 | . . 2 3 To Critical Strikes . | . . . . Average Backups 4 | 2 3 4 6 Power 1 | 1 1 1 1 Propulsion 2 | 1 2 2 2 Utility . | . . 1 1 Weapon . | . . . 1 Tool/Special . | . . . . Unused Backups 8 | 1 . . 7 Power 1 | . . . 1 Propulsion 2 | . . . 2 Utility 3 | . . . 3 Weapon 2 | 1 . . 1 Tool/Special . | . . . . Average Slot Usage (%) 86 | . 100 84 75 Engine 13 | . 14 14 11 Treads 27 | . 28 28 27 Device 4 | . 14 . . Storage 13 | . 14 14 11 Energy Gun 12 | . 14 12 11 Ballistic Gun 14 | . 14 14 15 Peak Build Rating 12 | 7 7 7 12 Average Rating 7 | 4 7 6 9 On Entrance 5 | . 7 7 7 Naked Turns . | . . . . Heaviest Build 52 | 14 14 14 52 Greatest Support 63 | 40 40 40 63 Greatest Overweight (x) 1 | . . . 1 Average Overweight (x) . | . . . . Largest Inventory Capacity 20 | 8 8 8 20 Average Capacity 10 | 7 8 8 17 Most Carried 9 | 5 4 5 9 Average Carried 4 | 2 3 4 6 Final Capacity 20 | 8 8 8 20 Final Carried 6 | 3 4 5 6 Class Distribution -------------------- 93% | Mutant 6% | Gunner Dominant Class ---------------- Mutant | -10/Materials Mutant | -10/Mines Mutant | -9/Materials Resources | -11 -10 -10 -9 ----------- Run | Yrd Mat Min Mat Matter Collected 304 | 276 6 22 . Remotely . | . . . . Salvage Created 562 | 65 48 125 324 Parts 40 | 5 6 12 17 Haulers Intercepted . | . . . . Recyclers Shooed . | . . . . Parts Field Recycled . | . . . . Retrieved Matter . | . . . . Parts Self-Destructed . | . . . . Prevented . | . . . . Kills | -11 -10 -10 -9 ------- Run | Yrd Mat Min Mat Combat Hostiles Destroyed 12 | . 3 5 4 Guns 12 | . 3 5 4 Classes Destroyed 7 | 1 1 1 4 Tunneler 3 | 3 . . . Recycler 2 | . . . 2 Watcher 1 | . . . 1 Swarmer 6 | . 3 3 . Grunt 4 | . . 2 2 Duelist 1 | . . . 1 Sentry 1 | . . . 1 Best Kill Streak 7 | 1 3 3 7 Combat Bots Only 3 | . 3 3 3 Max Kills in Single Turn 2 | 1 1 1 2 Gunslinging . | . . . . Exploded . | . . . . Melee . | . . . . Uniques/NPCs Destroyed . | . . . . Combat | -11 -10 -10 -9 -------- Run | Yrd Mat Min Mat Hostile Shots Fired 83 | . 15 22 46 Missed 21 | . 5 9 7 Hits 62 | . 10 13 39 Melee 7 | . . . 7 Projectile 55 | . 10 13 32 Critical Strikes 2 | . . . 2 Damage Taken 880 | . 78 145 657 Core 173 | . 20 9 144 Absorbed by Shields . | . . . . Core Remaining (%) 94 | 100 . 88 . Volleys Fired 46 | 6 6 16 18 Largest 3 | 2 2 2 3 Hottest 108 | 60 60 85 108 Shots Fired 94 | 12 12 24 46 Gun 94 | 12 12 24 46 Cannon . | . . . . Launcher . | . . . . Special . | . . . . Kinetic 64 | 6 6 16 36 Thermal 15 | . . 5 10 Explosive . | . . . . Electromagnetic 15 | 6 6 3 . Robot Hit Streak 10 | 6 4 6 10 Robot Miss Streak 2 | 1 1 2 2 Penetration Max . | . . . . Secondary Targets 4 | . 1 2 1 Max Gunslinging Chain 1 | . 1 1 1 Shots Hit Robots 65 | 8 7 17 33 Core Hits 31 | 5 3 8 15 Critical Kills 1 | . . . 1 Critical Parts Destroyed . | . . . . Critical Strikes 2 | . . . 2 Burn 1 | . . . 1 Destroy 1 | . . . 1 Melee Attacks . | . . . . Impact . | . . . . Slashing . | . . . . Piercing . | . . . . Sneak Attacks . | . . . . Combat Hostiles . | . . . . Follow-up Attacks . | . . . . Damage Inflicted 798 | 91 79 186 442 Guns 798 | 91 79 186 442 Cannons . | . . . . Explosions . | . . . . Melee . | . . . . Ramming . | . . . . Kinetic 460 | 41 33 82 304 Thermal 217 | . . 79 138 Explosive . | . . . . Electromagnetic 121 | 50 46 25 . Impact . | . . . . Slashing . | . . . . Piercing . | . . . . Highest Corruption . | . . . . Average Corruption . | . . . . Corruption Purged . | . . . . Corruption Blocked . | . . . . Overload Shots . | . . . . Overflow Damage . | . . . . Projectiles . | . . . . Explosions . | . . . . Melee . | . . . . Knockbacks . | . . . . Impact . | . . . . Kinetic . | . . . . Secondary . | . . . . Self-Inflicted Damage . | . . . . Shots . | . . . . Rammed . | . . . . Targets Rammed . | . . . . Kicked . | . . . . Crushed . | . . . . Highest Temperature 382 | 40 40 140 382 Average Temperature 136 | 15 17 49 246 Received Heat Transfer 270 | . . 63 207 Effects 2 | . . . 2 Shutdowns 1 | . . . 1 Damage (minor) 1 | . . . 1 Siege Activations . | . . . . Martial Activations . | . . . . Shielding Activations . | . . . . Robots Disrupted . | . . . . Combat Hostiles . | . . . . Robots Corrupted . | . . . . Combat Hostiles . | . . . . Parts Fried . | . . . . Impact Corruptions . | . . . . Robots Melted . | . . . . Combat Hostiles . | . . . . Parts Melted 1 | . . 1 . Heat Transferred 592 | . . 185 407 Parts Sabotaged . | . . . . Parts Stolen . | . . . . Parts Stripped . | . . . . Power Chain Reactions . | . . . . Alert | -11 -10 -10 -9 ------- Run | Yrd Mat Min Mat Maximum Alert Level . | . . . . Low Security (%) 100 | 100 100 100 100 Level 1 . | . . . . Level 2 . | . . . . Level 3 . | . . . . Level 4 . | . . . . Level 5 . | . . . . High Security . | . . . . Max Security . | . . . . Peak Influence 98 | 5 60 60 98 Initial 19 | . . 15 19 Average 15 | . 16 16 26 Influence Increases 364 | 15 86 135 128 Destroy 0b10 Robot/C 240 | . 60 100 80 Destroy 0b10 Robot/NC 30 | 15 . . 15 Destroy Leader 62 | . 10 20 32 Successful Hack 16 | . 16 . . Disable Machine 15 | . . 15 . Destroy Structure 1 | . . . 1 Influence Decreases 296 | 15 46 125 110 Entered New Map 56 | . . 25 31 Time Decay 190 | 15 46 80 49 Lost Part 50 | . . 20 30 Squads Dispatched 1 | . . . 1 Investigation . | . . . . Extermination . | . . . . Reinforcement 1 | . . . 1 Assault . | . . . . Garrison . | . . . . Intercept . | . . . . Searches Triggered . | . . . . Construction Impeded . | . . . . Haulers Reinforced . | . . . . Active Scanning Responses . | . . . . Cargo Convoy Interrupts . | . . . . Stealth | -11 -10 -10 -9 --------- Run | Yrd Mat Min Mat Distress Signals 1 | . . . 1 Communications Jammed . | . . . . Distress Signals . | . . . . Times Spotted 15 | . 3 5 7 Peak Tracking Total 4 | . 2 3 4 Tactical Retreats . | . . . . Traps | -11 -10 -10 -9 ------- Run | Yrd Mat Min Mat Traps Triggered . | . . . . Indirectly . | . . . . Trap Hack Attempts . | . . . . Triggered . | . . . . Disarmed . | . . . . Reprogrammed . | . . . . Reused . | . . . . Traps Extracted . | . . . . Installed . | . . . . Triggered . | . . . . Machines | -11 -10 -10 -9 ---------- Run | Yrd Mat Min Mat Machines Disabled 1 | . . 1 . Max in Single Turn 1 | . . 1 . Machines Repaired . | . . . . Machines Dismantled . | . . . . Machines Sabotaged . | . . . . Overloaded Fab Kills . | . . . . Hacking | -11 -10 -10 -9 --------- Run | Yrd Mat Min Mat Machines Accessed 2 | . 2 . . Terminals 2 | . 2 . . Fabricators . | . . . . Repair Stations . | . . . . Recycling Units . | . . . . Scanalyzers . | . . . . Garrison Access . | . . . . Total Hacks 4 | . 4 . . Successful 4 | . 4 . . Failed . | . . . . Catastrophic . | . . . . Database Lockouts . | . . . . Manual 3 | . 3 . . Terminals 4 | . 4 . . Fabricators . | . . . . Repair Stations . | . . . . Recycling Units . | . . . . Scanalyzers . | . . . . Garrison Access . | . . . . Terminal Hacks 3 | . 3 . . Branch Access Points 1 | . 1 . . Emergency Access Points 1 | . 1 . . Registered Components 1 | . 1 . . Fabricator Hacks . | . . . . Repair Station Hacks . | . . . . Recycling Unit Hacks . | . . . . Scanalyzer . | . . . . Garrison Access Hacks . | . . . . Unauthorized Hacks 1 | . 1 . . Terminals 1 | . 1 . . Botnet 1 | . 1 . . Fabricators . | . . . . Repair Stations . | . . . . Recycling Units . | . . . . Scanalyzers . | . . . . Garrison Access . | . . . . Data Cores Recovered . | . . . . Used . | . . . . Hacking Detections 2 | . 2 . . Full Trace Events . | . . . . Feedback Events . | . . . . Feedback Blocked . | . . . . Robot Schematics Acquired . | . . . . Robots Built . | . . . . Authchips . | . . . . Time . | . . . . Total Robot Build Rating . | . . . . Part Schematics Acquired . | . . . . Parts Built . | . . . . Authchips . | . . . . Time . | . . . . Total Part Build Rating . | . . . . Parts Repaired . | . . . . Time . | . . . . Parts Recycled . | . . . . Recycled Matter . | . . . . Retrieved Matter . | . . . . Retrieved Components . | . . . . Parts Scanalyzed . | . . . . Part Schematics Acquired . | . . . . Parts Damaged . | . . . . Bothacking | -11 -10 -10 -9 ------------ Run | Yrd Mat Min Mat Used RIF Installer . | . . . . Robots Hacked . | . . . . Non-combat . | . . . . Combat . | . . . . Robot Hacks Applied . | . . . . Relay Couplers Released . | . . . . Fabnet Peak Effective % . | . . . . Robots Rewired . | . . . . Allies Hacked . | . . . . Hacks Repelled . | . . . . Allies | -11 -10 -10 -9 -------- Run | Yrd Mat Min Mat Total Allies . | . . . . Largest Group . | . . . . Highest-Rated Group . | . . . . Highest-Rated Ally . | . . . . Total Orders . | . . . . Ally Attacks . | . . . . Total Damage . | . . . . Kills . | . . . . Allies Corrupted . | . . . . Allies Melted . | . . . . Intel | -11 -10 -10 -9 ------- Run | Yrd Mat Min Mat Active Infowar (turns) 234 | 25 199 10 . Seismic 234 | 25 199 10 . Robot Analysis Total . | . . . . Derelict Logs Recovered . | . . . . Drone Launches . | . . . . Drone Recoveries . | . . . . Exploration | -11 -10 -10 -9 ------------- Run | Yrd Mat Min Mat Turns Passed 813 | 154 199 280 180 Spaces Moved 408 | 87 114 151 56 Core 18 | 18 . . . Treads 390 | 69 114 151 56 Legs . | . . . . Wheels . | . . . . Hover . | . . . . Flight . | . . . . Fastest Speed 50 | 50 160 160 160 Average Speed 156 | 137 160 160 170 Slowest Speed 240 | 160 160 160 240 Overloaded Moves . | . . . . Propulsion Burnouts . | . . . . Robots Hopped . | . . . . Potential Cave-ins . | . . . . Cave-ins Triggered . | . . . . Exploration Rate (%) 18 | 5 34 27 8 Regions Visited 3 Branch Regions 1 Pre-discovered Areas . | . . . . Known Exits Taken 1 | . 1 . . Unknown Exits Taken 2 | 1 . 1 . Scrap Searched . | . . . . Spaces Dug . | . . . . Terrain Destroyed . | . . . . Melee . | . . . . Projectile . | . . . . AOE . | . . . . Terrain Rammed . | . . . . Walls Destroyed . | . . . . Machines Disabled . | . . . . Actions | -11 -10 -10 -9 --------- Run | Yrd Mat Min Mat Total 506 | 111 120 169 106 Wait 20 | . . . 20 Move 405 | 86 113 150 56 Hop . | . . . . Pick Up 20 | 11 1 2 6 Fast Attach . | . . . . Attach 12 | 7 . 1 4 Detach . | . . . . Swap . | . . . . Drop 3 | 1 . . 2 Fire 46 | 6 6 16 18 Melee . | . . . . Ram . | . . . . Kick . | . . . . Crush . | . . . . Escape Stasis . | . . . . Rewire . | . . . . Trap . | . . . . Miscellaneous . | . . . . Route ------- -11/Scrapyard -10/Materials (discovered 2 exits: [*Mat] / *Min) -10/Mines -9/Materials History --------- Turn | Location | Event 5 | -11/Scrapyard | Discovered new exit (range 15) 155 | -11/Scrapyard | Entered Materials 230 | -10/Materials | Identified exit to Mines 240 | -10/Materials | Discovered new exit (range 16) 308 | -10/Materials | Build established: Mutant 354 | -10/Materials | Entered Mines 492 | -10/Mines | Received a Rocket Launcher from a helpful Derelict 623 | -10/Mines | Discovered new exit (range 7) 634 | -10/Mines | Entered Materials 634 | -9/Materials | Evolved 2 slots: Propulsion x1, Weapon x1 814 | -9/Materials | Self-destructed Last Messages --------------- 00777_ K-01 Serf collects debris. 00777_ U-05 Engineer builds a Door. 00777_ R-06 Scavenger inserts Sml. Storage Unit into recycling unit. 00780_ R-06 Scavenger inserts Heat Sink into recycling unit. 00787_ R-06 Scavenger suffers critical hit (Destroy). 00787_ R-06 Scavenger destroyed. 00790_ Power failure, Ion Engine shutdown. 00798_ Overheating: Lgt. Treads damaged (-2). 00798_ Lgt. Treads destroyed. 00802_ Destroyed Melee Analysis Suite. 00803_ Imp. Treads severed. 00805_ L-31 Rogue destroyed. 00805_ Switching to secondary target: Y-45 Defender. 00807_ Critical hit (Burn: +37). 00813_ Lgt. Assault Rifle destroyed. 00813_ Hvy. Assault Rifle destroyed. Map ----- +----------------------------------------------------+ | ?????????????????????????????????????????????????? | | ?????????????????????????????????????????????????? | | ?????????????????????????????????????????????????? | | ?????????????????????????????????????????????????? | | ?????????????????????????????????????????????????? | | ?????????????????????????????????????????????????? | | ?????????????????????????????????????????????????? | | ?????????????????????????????????????????????????? | | ?????????????????????????????????????????????????? | | ?????????????????????????????????????????????????? | | ????????????????????????? ???????????????????????? | | ????????????????????????? ??????#############????? | | ????????????????????????# ??????# #????? | | ???????????????????????# ??????# !! #????? | | ???????????????????????# ??????# #????? | | ???????????????????????? ??????# """ """ #????? | | ??????????????#????????? ??????# """ """ #????? | | ?????????????? ??######+####??# """ """ #????? | | ??????????????? !# #??# #????? | | ????????????????? =+% ! """#########+######????? | | ???????????????????# g Y"# # #?#######? | | ???????????????????# =%"""# + # #? | | ???????????????????# """!*! # # # #? | | ???????????????????# """ / # # + #? | | ???????????????????# """ =%= # # # #? | | ???????????????????# @%= # # # #? | | ???????????????????#######Y######+### #########? | | ??????????????????????# [%= #????? | | ??????????????????????# [% #????? | | ??????????????????????# #????? | | ??????????????????????# ###################????? | | ??????????????????????# !???????????????????????? | | ??????????????????????# %???????????????????????? | | ??????????????????????+ ???????????????????????? | | ??????????????????????# ???????????????????????? | | ??????????????????????# ???????????????????????? | | ??????????????????????# ???????????????????????? | | ?????????????????????? ???????????????????????? | | ?????????????????????? ????????????????????????? | | ?????????????????????? ????????????????????????? | | ?????????????????????? ????????????????????????? | | ???????????????????????? ????????????????????????? | | ?????????????????????????????????????????????????? | | ?????????????????????????????????????????????????? | | ?????????????????????????????????????????????????? | | ?????????????????????????????????????????????????? | | ?????????????????????????????????????????????????? | | ?????????????????????????????????????????????????? | | ?????????????????????????????????????????????????? | | ?????????????????????????????????????????????????? | +----------------------------------------------------+ Best States ------------- Heat Dissipation 28 Energy Generation 10 Energy Capacity 250 Matter Stores 300 Matter Capacity 300 Sight Range 16 Terrain Scan Density 10 Evasion (%) 50 Recoil Reduction 3 Item Schematics ----------------- None Robot Schematics ------------------ None Fabricated ------------ Nothing Repaired ---------- Nothing Alien Tech Used ----------------- None Achievements -------------- None Challenges ------------ None Game ------ Seed WarlordSwarmScreen Manual? 0 Play Time 00:05:38 Cumulative 199.4 hours Start 2025.08.25 @ 11:49:51 End 2025.08.25 @ 11:54:17 Sessions 1 Manual Loads 0 Difficulty Rogue Special Mode None Game No. 308 Rogue 308 Adventurer 0 Explorer 0 Win Type - Total 4 Types 3/0/1/0/0/0/0/0/0/0 Lore% 79 Gallery% 75 Achievement% 55 Wizard Run 0 Options --------- Layout 1 ASCII 0 Keyboard 0 Movement Mouse Keybinds 0 Fullscreen 1 Font 24/Smallcaps Map View 50x40 Zoom Use 0% Tactical HUD 1 Map Filters NONE Filters NONE Steam 1 RUN: e5df2038-df47-4c05-9091-8617222c0de0